bitfinex/quotes_SOLUSD_20241218
["timestamp","ask_amount","ask_price","bid_price","bid_amount"]
[1734517328514,0.69201475,215.95,215.89,9.04381073]
[1734517328714,9.73582548,215.95,215.88,9.04381073]
[1734517330103,9.73582548,215.95,215.89,9.04381073]
[1734517332807,9.73582548,215.95,215.88,9.04381073]
[1734517333821,0.69201475,215.95,215.89,9.04381073]
[1734517335522,9.04381073,215.9,215.75,19.60701344]
[1734517335702,0.69201475,215.89,215.82,9.04381073]
[1734517336299,0.69201475,215.89,215.84,9.04381073]
[1734517336518,15.7914132,216.01,215.86,9.04381073]
[1734517336519,0.69201475,215.93,215.86,9.04381073]
[1734517336724,9.73582548,215.93,215.86,9.04381073]
[1734517337418,0.69201475,215.93,215.87,9.04381073]
[1734517338500,9.73582548,215.93,215.86,9.04381073]
[1734517339309,9.68008262,215.93,215.86,9.04381073]
[1734517339717,9.04381073,215.92,215.85,9.04381073]
[1734517340014,0.58052903,215.91,215.85,9.04381073]
[1734517340336,9.04381073,215.87,215.75,1.87191941]
[1734517340508,0.58052903,215.86,215.79,9.04381073]
[1734517340709,9.62433976,215.86,215.79,9.04381073]
[1734517341116,0.58052903,215.86,215.81,9.04381073]
[1734517341314,0.58052903,215.86,215.82,9.04381073]
[1734517341519,0.58052903,215.88,215.82,9.04381073]
[1734517343331,9.04381073,215.9,215.82,9.04381073]
[1734517343505,0.58052903,215.89,215.82,9.04381073]
[1734517343706,0.58052903,215.89,215.83,9.04381073]
[1734517343931,0.58052903,215.91,215.86,9.04381073]
[1734517344808,0.58052903,215.9,215.85,9.04381073]
[1734517345008,0.58052903,215.92,215.85,9.04381073]
[1734517346016,9.62433976,215.92,215.85,9.04381073]
[1734517346606,0.58052903,215.92,215.85,9.04381073]
[1734517346813,9.62433976,215.92,215.84,9.04381073]
[1734517348111,9.62433976,215.92,215.85,9.04381073]
[1734517349112,9.62433976,215.92,215.84,9.04381073]
[1734517349638,9.04381073,215.91,215.84,9.04381073]
[1734517349813,0.58052903,215.9,215.84,9.04381073]
[1734517351335,9.04381073,215.91,215.84,9.04381073]
[1734517351523,0.58052903,215.9,215.84,9.04381073]
[1734517353917,0.58052903,215.9,215.79,1.637]
[1734517354113,0.58052903,215.9,215.83,9.04381073]
[1734517354318,9.04381073,215.89,215.79,1.637]
[1734517354632,0.58052903,215.88,215.81,9.04381073]
[1734517355028,9.04381073,215.86,215.79,1.637]
[1734517355239,0.58052903,215.85,215.79,10.68081073]
[1734517356139,0.58052903,215.84,215.79,10.68081073]
[1734517356338,0.58052903,215.86,215.8,9.04381073]
[1734517357329,9.04381073,215.86,215.79,10.68081073]
[1734517357643,0.58052903,215.85,215.79,10.68081073]
[1734517358054,0.58052903,215.85,215.79,1.637]
[1734517358340,0.58052903,215.85,215.8,9.04381073]
[1734517358561,9.04381073,215.87,215.8,9.04381073]
[1734517358864,0.58052903,215.86,215.8,9.04381073]
[1734517359150,0.58052903,215.86,215.81,9.04381073]
[1734517359733,0.58052903,215.85,215.81,9.04381073]
[1734517359940,0.58052903,215.87,215.81,9.04381073]
[1734517360250,0.58052903,215.87,215.83,9.04381073]
[1734517360453,8.1795,215.97,215.84,9.04381073]
[1734517360454,0.58052903,215.88,215.84,9.04381073]
[1734517360632,0.58052903,215.9,215.84,9.04381073]
[1734517361558,0.58052903,215.9,215.85,9.04381073]
[1734517362270,0.58052903,215.9,215.84,9.04381073]
[1734517362445,0.58052903,215.9,215.79,1.637]
[1734517362768,9.62433976,215.9,215.83,9.04381073]
[1734517362978,9.04381073,215.89,215.79,1.637]
[1734517363134,9.04381073,215.87,215.79,1.637]
[1734517363447,0.58052903,215.86,215.8,9.04381073]
[1734517363635,0.58052903,215.86,215.74,1.5573]
[1734517363636,9.04381073,215.85,215.74,1.5573]
[1734517363832,0.58052903,215.84,215.74,1.5573]
[1734517364033,0.58052903,215.84,215.78,9.04381073]
[1734517364232,9.04381073,215.83,215.76,9.04381073]
[1734517364525,0.58052903,215.82,215.76,9.04381073]
[1734517364929,0.58052903,215.82,215.74,1.5573]
[1734517364930,0.58052903,215.82,215.77,9.04381073]
[1734517365353,0.58052903,215.81,215.74,1.5573]
[1734517365734,0.58052903,215.81,215.77,9.04381073]
[1734517366051,0.58052903,215.83,215.77,9.04381073]
[1734517366248,9.62433976,215.83,215.76,9.04381073]
[1734517366564,0.58052903,215.83,215.78,9.04381073]
[1734517366932,0.58052903,215.82,215.78,9.04381073]
[1734517367252,0.58052903,215.85,215.79,9.04381073]
[1734517368555,9.62433976,215.85,215.78,9.04381073]
[1734517370556,9.04381073,215.84,215.74,1.5573]
[1734517370760,0.58052903,215.83,215.77,9.04381073]
[1734517371841,0.58052903,215.83,215.74,1.5573]
[1734517372343,0.58052903,215.83,215.77,9.04381073]
[1734517373781,9.62433976,215.83,215.76,9.04381073]
[1734517373933,9.62433976,215.83,215.75,9.04381073]
[1734517376640,9.04381073,215.82,215.75,9.04381073]
[1734517376836,0.58052903,215.81,215.75,9.04381073]
[1734517378231,9.62433976,215.81,215.74,10.60111073]
[1734517378487,9.04381073,215.8,215.74,1.5573]
[1734517378662,9.04381073,215.78,215.71,9.04381073]
[1734517378846,0.58052903,215.77,215.71,9.04381073]
[1734517379505,0.58052903,215.77,215.7,0.5617089]
[1734517379668,0.58052903,215.77,215.72,9.04381073]
[1734517379986,0.58052903,215.78,215.72,9.04381073]
[1734517382668,0.58052903,215.78,215.7,0.5617089]
[1734517382995,9.62433976,215.78,215.7,0.5617089]
[1734517383197,9.04381073,215.73,215.7,0.5617089]
[1734517383380,0.58052903,215.72,215.7,0.5617089]
[1734517384283,9.62433976,215.72,215.7,0.5617089]
[1734517384457,9.04381073,215.71,215.7,0.5617089]
[1734517384653,9.62433976,215.71,215.7,0.5617089]
[1734517385053,0.58052903,215.71,215.7,0.5617089]
[1734517385256,9.04381073,215.71,215.7,0.5617089]
[1734517385676,32.82069473,215.71,215.7,0.5617089]
[1734517385876,105.38516668,215.71,215.7,0.5617089]
[1734517386055,23.776884,215.71,215.7,0.5617089]
[1734517386257,9.68008262,215.71,215.7,0.5617089]
[1734517387278,9.04381073,215.71,215.7,0.5617089]
[1734517387993,0.63627189,215.74,215.7,0.5617089]
[1734517388167,27.76,215.72,215.7,0.5617089]
[1734517388365,0.63627189,215.71,215.7,0.5617089]
[1734517389171,0.63627189,215.72,215.7,0.5617089]
[1734517389472,9.04381073,215.74,215.7,0.5617089]
[1734517389678,0.63627189,215.73,215.7,0.5617089]
[1734517393881,13.89,215.83,215.7,9.60551963]
[1734517393882,0.63627189,215.79,215.7,9.60551963]
[1734517394071,9.04381073,215.78,215.71,9.04381073]
[1734517394265,0.63627189,215.77,215.71,9.04381073]
[1734517398968,0.63627189,215.77,215.7,0.5617089]
[1734517398969,9.68008262,215.77,215.7,0.5617089]
[1734517399172,9.04381073,215.76,215.7,0.5617089]
[1734517399395,0.63627189,215.75,215.7,0.5617089]
[1734517401502,27.76,215.83,215.7,0.5617089]
[1734517401773,9.04381073,215.78,215.71,20.53376767]
[1734517401997,9.68008262,215.77,215.71,11.48995694]
[1734517402197,9.04381073,215.76,215.71,11.48995694]
[1734517403671,9.04381073,215.76,215.7,0.5617089]
[1734517403876,9.04381073,215.77,215.7,9.60551963]
[1734517404081,0.63627189,215.76,215.7,9.60551963]
[1734517404281,0.63627189,215.76,215.7,0.5617089]
[1734517404508,0.63627189,215.76,215.7,9.60551963]
[1734517404678,9.04381073,215.78,215.71,9.04381073]
[1734517405177,0.63627189,215.82,215.71,9.04381073]
[1734517405178,9.04381073,215.79,215.71,9.04381073]
[1734517405517,0.63627189,215.78,215.73,9.04381073]
[1734517405691,0.63627189,215.79,215.76,9.04381073]
[1734517405890,9.04381073,215.83,215.76,9.04381073]
[1734517406096,6.1622,215.91,215.78,9.04381073]
[1734517406281,9.04381073,215.85,215.78,9.04381073]
[1734517406480,0.63627189,215.84,215.78,9.04381073]
[1734517406686,9.04381073,215.86,215.79,9.04381073]
[1734517406895,0.63627189,215.85,215.79,9.04381073]
[1734517407279,0.63627189,215.9,215.81,9.04381073]
[1734517407582,9.04381073,215.89,215.82,9.04381073]
[1734517407795,0.63627189,215.88,215.82,9.04381073]
[1734517407991,0.63627189,215.88,215.81,9.04381073]
[1734517408198,0.63627189,215.88,215.82,9.04381073]
[1734517409597,9.04381073,215.87,215.77,11.5863]
[1734517409778,0.63627189,215.86,215.77,11.5863]
[1734517410085,9.04381073,215.84,215.73,11.5881]
[1734517410292,9.68008262,215.83,215.76,9.04381073]
[1734517410609,9.68008262,215.82,215.75,9.04381073]
[1734517412891,9.04381073,215.81,215.72,1.6185]
[1734517413096,0.63627189,215.8,215.73,9.04381073]
[1734517413294,0.63627189,215.8,215.74,9.04381073]
[1734517414080,0.63627189,215.8,215.72,1.6185]
[1734517414308,0.63627189,215.8,215.73,9.04381073]
[1734517416722,9.04381073,215.81,215.73,9.04381073]
[1734517417986,9.04381073,215.83,215.75,9.04381073]
[1734517418307,0.63627189,215.87,215.77,9.04381073]
[1734517418308,9.04381073,215.84,215.77,9.04381073]
[1734517418604,0.63627189,215.83,215.77,9.04381073]
[1734517422201,0.63627189,215.83,215.76,9.04381073]
[1734517423796,0.63627189,215.83,215.73,0.12549]
[1734517423997,0.63627189,215.83,215.76,9.04381073]
[1734517424393,0.63627189,215.87,215.79,9.04381073]
[1734517424615,9.04381073,215.86,215.79,9.04381073]
[1734517424819,0.63627189,215.85,215.79,9.04381073]
[1734517426313,9.68008262,215.87,215.79,9.04381073]
[1734517426521,0.63627189,215.87,215.81,9.04381073]
[1734517427301,0.63627189,215.88,215.81,9.04381073]
[1734517427912,2.21287189,215.92,215.84,9.04381073]
[1734517428226,9.04381073,215.91,215.84,9.04381073]
[1734517428414,0.63627189,215.9,215.84,9.04381073]
[1734517430008,9.68008262,215.9,215.83,9.04381073]
[1734517430410,29.04381073,215.92,215.85,9.04381073]
[1734517430613,0.63627189,215.91,215.85,9.04381073]
[1734517430810,9.68008262,215.91,215.84,9.04381073]
[1734517431007,0.63627189,215.91,215.85,9.04381073]
[1734517431202,9.68008262,215.91,215.84,9.04381073]
[1734517431614,0.63627189,215.91,215.85,9.04381073]
[1734517434130,9.04381073,215.93,215.86,9.04381073]
[1734517434338,9.68008262,215.92,215.85,9.04381073]
[1734517434630,0.63627189,215.92,215.86,10.65111073]
[1734517434825,9.04381073,215.95,215.88,9.04381073]
[1734517435026,0.63627189,215.94,215.88,9.04381073]
[1734517437629,9.68008262,215.94,215.87,9.04381073]
[1734517439118,9.04381073,215.93,215.86,1.6073]
[1734517439431,9.68008262,215.92,215.86,1.6073]
[1734517439638,9.04381073,215.91,215.86,1.6073]
[1734517440327,9.04381073,215.92,215.86,1.6073]
[1734517440528,9.04381073,215.92,215.86,10.65111073]
[1734517441233,9.04381073,215.9,215.81,1.6254]
[1734517441424,9.04381073,215.9,215.83,9.04381073]
[1734517441922,9.04381073,215.9,215.84,9.04381073]
[1734517442825,9.04381073,215.91,215.84,9.04381073]
[1734517443022,0.63627189,215.9,215.84,9.04381073]
[1734517443525,9.04381073,215.91,215.84,9.04381073]
[1734517444042,9.04381073,215.93,215.86,9.04381073]
[1734517444343,0.63627189,215.92,215.86,9.04381073]
[1734517445039,9.68008262,215.92,215.85,9.04381073]
[1734517447424,9.68008262,215.92,215.85,9.04381073]
[1734517450874,0.63627189,215.92,215.86,9.04381073]
[1734517451048,9.04381073,215.94,215.87,9.04381073]
[1734517451225,0.63627189,215.93,215.87,9.04381073]
[1734517452142,0.63627189,215.94,215.87,9.04381073]
[1734517455037,0.63627189,215.94,215.88,9.04381073]
[1734517455834,0.63627189,215.95,215.88,9.04381073]
[1734517456156,0.63627189,215.95,215.89,9.04381073]
[1734517456454,0.63627189,215.97,215.91,9.04381073]
[1734517457143,0.63627189,215.97,215.9,9.04381073]
[1734517457658,0.63627189,215.97,215.92,9.04381073]
[1734517457843,0.63627189,215.98,215.92,9.04381073]
[1734517458162,0.63627189,216.01,215.95,9.04381073]
[1734517458342,9.04381073,216.02,215.95,9.04381073]
[1734517458542,0.63627189,216.01,215.95,9.04381073]
[1734517459246,0.63627189,216.02,215.97,9.04381073]
[1734517459455,0.63627189,216.02,215.98,9.04381073]
[1734517459755,9.68008262,216.04,215.97,9.04381073]
[1734517460458,9.04381073,216.03,215.96,9.04381073]
[1734517460646,0.63627189,216.02,215.96,9.04381073]
[1734517461064,9.04381073,216.03,215.96,9.04381073]
[1734517461659,9.04381073,216.05,215.98,9.04381073]
[1734517461862,0.63627189,216.04,215.98,9.04381073]
[1734517462943,0.63627189,216.05,215.99,9.04381073]
[1734517463149,0.63627189,216.05,215.98,9.04381073]
[1734517463557,0.63627189,216.05,215.99,9.04381073]
[1734517463755,4.0631437,216.14,216.04,9.04381073]
[1734517463957,4.0631437,216.14,216.07,9.04381073]
[1734517463958,11.56165443,216.14,216.07,9.04381073]
[1734517464159,9.04381073,216.12,216.05,9.04381073]
[1734517464382,2.5178437,216.14,216.03,9.04381073]
[1734517464383,9.04381073,216.1,216.03,9.04381073]
[1734517464681,0.63627189,216.09,216.03,9.04381073]
[1734517467282,0.63627189,216.09,216.04,9.04381073]
[1734517467573,0.63627189,216.1,216.05,9.04381073]
[1734517467749,9.04381073,216.12,216.01,20.0]
[1734517467750,20.0,216.13,216.06,9.04381073]
[1734517467948,20.0,216.13,216.08,9.04381073]
[1734517468469,0.63627189,216.15,216.1,9.04381073]
[1734517468683,0.63627189,216.16,216.11,9.04381073]
[1734517468882,0.63627189,216.16,216.1,9.04381073]
[1734517469049,9.68008262,216.16,216.09,9.04381073]
[1734517469259,9.04381073,216.15,216.08,9.04381073]
[1734517469453,0.63627189,216.14,216.08,9.04381073]
[1734517469973,0.63627189,216.14,216.09,9.04381073]
[1734517470355,0.63627189,216.15,216.09,9.04381073]
[1734517470553,0.63627189,216.15,216.1,9.04381073]
[1734517471153,0.63627189,216.15,216.09,9.04381073]
[1734517471581,0.63627189,216.16,216.09,9.04381073]
[1734517472367,9.04381073,216.15,216.08,9.04381073]
[1734517472679,9.04381073,216.11,216.04,9.04381073]
[1734517472877,9.68008262,216.1,216.02,9.04381073]
[1734517473199,0.63627189,216.1,216.05,9.04381073]
[1734517473671,24.41315589,216.12,216.05,9.04381073]
[1734517474877,24.41315589,216.12,216.02,0.12549]
[1734517475378,33.45696662,216.12,216.05,9.04381073]
[1734517475753,24.41315589,216.12,216.06,9.04381073]
[1734517477556,24.41315589,216.12,216.05,9.04381073]
[1734517478979,9.04381073,216.11,216.01,1.5522]
[1734517479181,9.68008262,216.1,216.03,9.04381073]
[1734517479565,0.63627189,216.1,216.03,9.04381073]
[1734517479781,9.68008262,216.1,216.03,9.04381073]
[1734517481817,9.04381073,216.08,216.01,1.5522]
[1734517481981,9.68008262,216.07,216.0,9.04381073]
[1734517482314,9.62428549,216.07,216.0,9.04381073]
[1734517482460,9.62428549,216.07,215.97,0.12549]
[1734517482660,9.62428549,216.07,216.0,9.04381073]
[1734517482909,0.58047476,216.07,216.0,9.04381073]
[1734517483781,0.58047476,216.07,216.01,9.04381073]
[1734517483959,0.58047476,216.07,216.02,9.04381073]
[1734517484159,0.58047476,216.11,216.05,9.04381073]
[1734517484365,9.62428549,216.11,216.04,9.04381073]
[1734517485104,9.62428549,216.11,216.03,9.04381073]
[1734517486771,9.04381073,216.09,215.97,0.12549]
[1734517486977,0.58047476,216.08,216.02,9.04381073]
[1734517488566,0.58047476,216.08,216.03,9.04381073]
[1734517490994,0.58047476,216.08,216.02,9.04381073]
[1734517491486,9.62428549,216.08,215.97,0.12549]
[1734517491692,9.62428549,216.08,216.01,9.04381073]
[1734517492987,0.58047476,216.08,216.02,9.04381073]
[1734517496289,0.58047476,216.08,216.04,9.04381073]
[1734517496495,0.58047476,216.08,216.03,9.04381073]
[1734517500188,0.58047476,216.1,216.06,9.04381073]
[1734517500386,20.0,216.11,216.07,9.04381073]
[1734517500613,9.62428549,216.15,216.07,9.04381073]
[1734517501724,9.04381073,216.13,216.06,9.04381073]
[1734517502018,0.58047476,216.12,216.06,9.04381073]
[1734517502779,0.58047476,216.12,216.05,10.62461073]
[1734517504000,0.58047476,216.12,216.06,9.04381073]
[1734517505178,0.58047476,216.13,216.09,9.04381073]
[1734517505495,0.58047476,216.18,216.12,9.04381073]
[1734517506193,9.04381073,216.22,216.15,9.04381073]
[1734517506509,0.58047476,216.21,216.15,9.04381073]
[1734517506682,0.58047476,216.21,216.16,9.04381073]
[1734517506883,0.58047476,216.21,216.15,9.04381073]
[1734517507313,9.62428549,216.22,216.15,9.04381073]
[1734517508135,0.58047476,216.22,216.15,7.64381053]
[1734517509293,0.58047476,216.22,216.16,9.04381073]
[1734517509709,0.58047476,216.22,216.17,9.04381073]
[1734517510019,24.35735876,216.23,216.17,9.04381073]
[1734517511902,0.58047476,216.23,216.17,9.04381073]
[1734517512906,0.58047476,216.23,216.18,9.04381073]
[1734517513212,0.58047476,216.24,216.19,9.04381073]
[1734517513441,9.04381073,216.26,216.19,9.04381073]
[1734517513627,0.58047476,216.25,216.19,9.04381073]
[1734517514612,0.58047476,216.28,216.22,9.04381073]
[1734517514793,9.62428549,216.28,216.22,9.04381073]
[1734517515211,0.58047476,216.28,216.22,9.04381073]
[1734517515614,0.58047476,216.28,216.24,9.04381073]
[1734517515793,9.62428549,216.33,216.26,9.04381073]
[1734517515997,9.04381073,216.31,216.24,9.04381073]
[1734517516197,0.58047476,216.3,216.24,9.04381073]
[1734517516390,9.62428549,216.3,216.23,9.04381073]
[1734517517092,23.776884,216.29,216.23,9.04381073]
[1734517518006,23.776884,216.29,216.24,9.04381073]
[1734517518715,9.04381073,216.27,216.21,1.5699]
[1734517518911,33.40116949,216.26,216.21,1.5699]
[1734517519114,9.04381073,216.25,216.21,1.5699]
[1734517519308,0.58047476,216.24,216.21,1.5699]
[1734517520003,23.776884,216.24,216.21,1.5699]
[1734517520433,23.776884,216.26,216.21,10.61371073]
[1734517520916,0.58047476,216.31,216.22,9.04381073]
[1734517521117,20.0,216.3,216.26,9.04381073]
[1734517521321,0.58047476,216.31,216.26,9.04381073]
[1734517522113,9.04381073,216.33,216.26,9.04381073]
[1734517522114,0.58047476,216.32,216.26,9.04381073]
[1734517522940,0.58047476,216.32,216.27,9.04381073]
[1734517523232,0.58047476,216.33,216.27,9.04381073]
[1734517524132,23.776884,216.32,216.27,9.04381073]
[1734517524337,23.776884,216.32,216.28,9.04381073]
[1734517524745,23.776884,216.31,216.27,9.04381073]
[1734517524948,23.776884,216.31,216.26,9.04381073]
[1734517525316,23.776884,216.31,216.25,9.04381073]
[1734517526032,23.776884,216.31,216.26,9.04381073]
[1734517526765,23.776884,216.29,216.22,134.92549]
[1734517526926,23.776884,216.27,216.22,143.84381073]
[1734517527119,0.58047476,216.26,216.21,1.5699]
[1734517527428,23.776884,216.25,216.21,1.5699]
[1734517527851,23.776884,216.25,216.17,0.12549]
[1734517528025,23.776884,216.25,216.2,9.04381073]
[1734517529320,23.776884,216.26,216.22,9.04381073]
[1734517529524,9.04381073,216.3,216.23,9.04381073]
[1734517529829,24.35735876,216.29,216.23,9.04381073]
[1734517532649,24.35735876,216.29,216.17,0.12549]
[1734517532650,32.82069473,216.27,216.17,134.92549]
[1734517532852,9.04381073,216.25,216.18,9.04381073]
[1734517533045,0.58047476,216.24,216.18,9.04381073]
[1734517533750,23.776884,216.23,216.17,143.84381073]
[1734517533931,0.58047476,216.22,216.17,143.84381073]
[1734517534539,24.35735876,216.23,216.17,143.84381073]
[1734517535051,24.35735876,216.23,216.17,9.04381073]
[1734517539346,23.776884,216.23,216.17,9.04381073]
[1734517539543,24.35735876,216.24,216.17,9.04381073]
[1734517540059,9.04381073,216.2,216.11,7.8104]
[1734517540245,32.82069473,216.18,216.11,16.85421073]
[1734517540573,27.76,216.24,216.11,1.6397]
[1734517540574,32.82069473,216.16,216.11,1.6397]
[1734517540727,23.776884,216.14,216.11,1.6397]
[1734517541148,23.776884,216.14,216.11,10.68351073]
[1734517541349,23.776884,216.16,216.11,10.68351073]
[1734517542031,23.776884,216.14,216.11,10.68351073]
[1734517542632,23.776884,216.16,216.11,10.68351073]
[1734517542834,23.776884,216.14,216.11,10.68351073]
[1734517543543,23.776884,216.16,216.11,1.6397]
[1734517543742,0.58047476,216.15,216.1,9.04381073]
[1734517543946,23.776884,216.14,216.1,9.04381073]
[1734517544863,24.35735876,216.16,216.1,9.04381073]
[1734517546865,24.35735876,216.16,216.11,9.04381073]
[1734517547437,24.35735876,216.16,216.1,9.04381073]
[1734517547854,24.35735876,216.16,216.09,9.04381073]
[1734517548643,24.35735876,216.16,216.1,9.04381073]
[1734517551039,24.35735876,216.16,216.09,9.04381073]
[1734517551455,24.35735876,216.16,216.07,0.12549]
[1734517551645,24.35735876,216.16,216.09,9.04381073]
[1734517551646,33.40116949,216.16,216.09,9.04381073]
[1734517552264,9.04381073,216.15,216.08,9.04381073]
[1734517552455,23.776884,216.13,216.08,9.04381073]
[1734517553470,23.776884,216.14,216.08,9.04381073]
[1734517553667,0.58047476,216.13,216.08,9.04381073]
[1734517554052,23.776884,216.12,216.06,1.5182]
[1734517554258,0.58047476,216.11,216.06,10.56201073]
[1734517557471,23.776884,216.1,216.06,10.56201073]
[1734517557970,33.40116949,216.12,216.06,1.5182]
[1734517558180,0.58047476,216.11,216.06,1.5182]
[1734517558565,23.776884,216.1,216.06,1.5182]
[1734517559154,23.776884,216.11,216.06,1.5182]
[1734517559478,0.58047476,216.1,216.06,1.5182]
[1734517560772,0.58047476,216.1,216.05,9.04381073]
[1734517560992,32.82069473,216.09,216.01,1.5535]
[1734517561187,23.776884,216.07,216.01,10.59731073]
[1734517561479,23.776884,216.07,216.02,9.04381073]
[1734517561683,23.776884,216.07,216.01,10.59731073]
[1734517561974,23.776884,216.07,216.01,1.5535]
[1734517562186,23.776884,216.07,216.01,10.59731073]
[1734517562568,23.776884,216.05,215.96,1.5634]
[1734517562784,24.35735876,216.05,215.99,9.04381073]
[1734517562961,23.776884,216.05,216.0,9.04381073]
[1734517563161,9.04381073,216.07,216.0,9.04381073]
[1734517563162,23.776884,216.06,216.0,9.04381073]
[1734517563361,23.776884,216.04,216.0,9.04381073]
[1734517564275,9.04381073,216.08,216.01,9.04381073]
[1734517564475,23.776884,216.08,216.02,9.04381073]
[1734517564680,24.35735876,216.08,216.02,9.04381073]
[1734517564891,33.40116949,216.08,215.97,0.12549]
[1734517565058,33.40116949,216.08,216.01,9.04381073]
[1734517565677,0.58047476,216.07,216.01,9.04381073]
[1734517566474,32.82069473,216.08,216.01,9.04381073]
[1734517567182,0.58047476,216.07,216.01,9.04381073]
[1734517569005,0.58047476,216.07,216.0,9.04381073]
[1734517570474,32.82069473,216.06,215.97,134.92549]
[1734517570788,23.776884,216.04,215.97,143.96930073]
[1734517570989,23.776884,216.04,215.97,9.16930073]
[1734517571191,23.776884,216.04,215.99,9.04381073]
[1734517571496,23.776884,216.05,215.99,9.04381073]
[1734517572692,32.82069473,216.05,215.98,9.04381073]
[1734517575079,23.776884,216.05,215.99,9.04381073]
[1734517579312,24.35735876,216.05,215.99,9.04381073]
[1734517580483,0.58047476,216.04,215.96,1.5634]
[1734517580683,23.776884,216.03,215.98,9.04381073]
[1734517581037,23.776884,216.04,215.98,9.04381073]
[1734517581209,24.35735876,216.05,216.0,9.04381073]
[1734517581425,32.82069473,216.09,216.01,9.04381073]
[1734517581721,23.776884,216.07,216.02,9.04381073]
[1734517582222,23.776884,216.08,216.01,9.04381073]
[1734517583720,23.776884,216.08,216.0,9.04381073]
[1734517583721,9.62428549,216.07,216.0,9.04381073]
[1734517584411,32.82069473,216.06,215.99,9.04381073]
[1734517584987,32.82069473,216.04,215.97,9.04381073]
[1734517585813,0.58047476,216.03,215.96,10.60721073]
[1734517586892,0.58047476,216.03,215.97,9.04381073]
[1734517588395,23.776884,216.04,215.97,9.04381073]
[1734517588720,23.776884,216.04,215.98,9.04381073]
[1734517590903,23.776884,216.02,215.96,1.5634]
[1734517594695,23.776884,216.02,215.96,10.60721073]
[1734517595630,23.776884,216.02,215.97,9.04381073]
[1734517595805,23.776884,216.03,215.97,9.04381073]
[1734517596004,33.40116949,216.03,215.96,10.60721073]
[1734517596814,33.40116949,216.03,215.97,3.55035759]
[1734517597005,0.58047476,216.02,215.97,3.55035759]
[1734517597318,0.58047476,216.02,215.98,3.55035759]
[1734517597697,0.58047476,216.02,215.99,3.55035759]
[1734517598402,0.58047476,216.02,216.0,3.55035759]
[1734517598602,32.82069473,216.03,216.0,3.55035759]
[1734517598799,0.58047476,216.02,216.0,3.55035759]
[1734517599019,0.58047476,216.02,215.96,10.60721073]
[1734517599221,32.82069473,216.03,215.96,1.5634]
[1734517600517,32.82069473,216.03,215.96,10.60721073]
[1734517604306,23.776884,216.03,215.97,9.04381073]
[1734517604512,24.35735876,216.03,215.97,9.04381073]
[1734517606304,33.40116949,216.03,215.96,10.60721073]
[1734517606498,32.82069473,216.03,215.96,10.60721073]
[1734517606939,32.82069473,216.03,215.96,1.5634]
[1734517607412,32.82069473,216.03,215.96,10.60721073]
[1734517621420,0.58047476,216.08,215.98,9.04381073]
[1734517621615,0.58047476,216.09,216.02,9.04381073]
[1734517621822,9.04381073,216.08,216.02,9.04381073]
[1734517622345,9.04381073,216.08,216.01,9.04381073]
[1734517622732,9.04381073,216.07,216.01,9.04381073]
[1734517622933,23.776884,216.07,216.01,9.04381073]
[1734517623141,32.82069473,216.07,216.01,9.04381073]
[1734517624747,0.58047476,216.06,215.98,7.16842168]
[1734517625050,32.82069473,216.05,215.98,151.01223241]
[1734517625347,9.04381073,216.02,215.98,134.8]
[1734517625646,9.04381073,216.02,215.96,7.06281058]
[1734517626243,32.82069473,216.03,215.96,16.10662131]
[1734517627244,32.82069473,216.03,215.96,7.06281058]
[1734517627448,9.04381073,216.02,215.96,7.06281058]
[1734517630426,32.82069473,216.03,215.96,16.10662131]
[1734517631758,23.776884,216.01,215.96,7.06281058]
[1734517632251,23.776884,216.01,215.96,16.10662131]
[1734517632454,23.776884,216.06,215.97,9.04381073]
[1734517632747,23.776884,216.03,215.97,9.04381073]
[1734517632955,24.35735876,216.03,215.97,9.04381073]
[1734517633156,33.40116949,216.03,215.96,23.27504299]
[1734517633873,32.82069473,216.03,215.96,23.27504299]
[1734517636361,0.58047476,216.02,215.96,23.27504299]
[1734517636542,0.58047476,216.02,215.96,14.23123226]
[1734517636742,0.58047476,216.02,215.96,23.27504299]
[1734517638435,0.58047476,216.07,216.01,9.04381073]
[1734517638642,9.04381073,216.09,216.02,9.04381073]
[1734517638861,0.58047476,216.08,216.02,9.04381073]
[1734517639369,9.62428549,216.08,216.01,9.04381073]
[1734517640262,23.776884,216.07,216.01,9.04381073]
[1734517642941,0.58047476,216.12,216.02,9.04381073]
[1734517643157,23.776884,216.08,216.03,9.04381073]
[1734517643357,0.58047476,216.13,216.06,143.84381073]
[1734517643660,9.04381073,216.15,216.08,9.04381073]
[1734517643837,0.58047476,216.14,216.08,9.04381073]
[1734517644162,9.62428549,216.14,216.07,9.04381073]
[1734517644331,0.58047476,216.14,216.08,9.04381073]
[1734517644664,27.78,216.19,216.12,9.04381073]
[1734517644665,0.58047476,216.19,216.12,9.04381073]
[1734517644886,9.04381073,216.2,216.12,143.84381073]
[1734517645084,0.58047476,216.19,216.13,9.04381073]
[1734517646456,23.776884,216.18,216.13,9.04381073]
[1734517646664,23.776884,216.19,216.13,9.04381073]
[1734517647071,33.40116949,216.19,216.12,134.8]